bitfinex/quotes_ETHUSD_20251009
["timestamp","ask_amount","ask_price","bid_price","bid_amount"]
[1760041001860,2.30803344,4332.7,4332.3,0.796542]
[1760041002058,0.002,4332.8,4332.3,0.796542]
[1760041002293,0.002,4332.8,4332.4,0.15518189]
[1760041002490,0.002,4332.8,4332.4,0.27038189]
[1760041002670,0.002,4332.8,4332.5,0.38113104]
[1760041002872,0.002,4332.8,4332.6,0.02308082]
[1760041003067,0.002,4332.8,4332.6,0.15518082]
[1760041003268,0.002,4332.8,4332.7,0.15518029]
[1760041003471,0.002,4332.8,4332.7,8.97120992]
[1760041003803,0.002,4332.8,4332.7,7.92134738]
[1760041004374,0.002,4332.8,4332.7,10.22937701]
[1760041005594,0.002,4332.8,4332.7,12.14937701]
[1760041007012,0.002,4332.8,4332.7,12.78297701]
[1760041007297,0.002,4333.3,4333.2,2.30776331]
[1760041007519,0.002,4333.3,4333.2,13.78932326]
[1760041007705,0.002,4333.3,4333.2,14.03662326]
[1760041007926,0.002,4333.3,4333.2,14.67022326]
[1760041012490,0.002,4333.3,4333.2,3.18565995]
[1760041012808,0.002,4333.3,4333.2,13.26586331]
[1760041019232,0.002,4333.7,4333.4,2.3076568]
[1760041019419,0.002,4333.7,4333.6,1.92]
[1760041019805,0.002,4333.7,4333.6,2.0521]
[1760041020434,0.002,4333.7,4333.6,4.3596503]
[1760041020631,0.002,4333.7,4333.6,6.63449625]
[1760041020935,0.002,4333.7,4333.6,6.61142075]
[1760041021830,0.002,4333.7,4333.6,4.17177045]
[1760041022032,0.002,4333.7,4333.6,1.92]
[1760041022464,0.002,4333.7,4333.6,4.3596503]
[1760041022665,0.002,4333.7,4333.6,4.4748503]
[1760041023142,0.002,4333.7,4333.6,2.1673]
[1760041023337,0.002,4333.7,4333.6,2.0352]
[1760041024067,2.30949705,4333.7,4333.6,2.0352]
[1760041024458,0.002,4333.7,4333.6,2.0352]
[1760041025269,2.3075503,4333.6,4333.5,6.506]
[1760041025454,0.002,4333.7,4333.5,6.506]
[1760041025835,2.30952005,4333.7,4333.5,6.506]
[1760041026197,0.002,4333.7,4333.5,6.506]
[1760041026541,0.002,4333.7,4333.5,6.6212]
[1760041027255,2.3075503,4333.6,4333.5,6.6212]
[1760041027457,0.002,4333.7,4333.5,6.6212]
[1760041027458,2.30954139,4333.7,4333.5,6.6212]
[1760041027850,2.3075503,4333.6,4333.5,6.6212]
[1760041028256,2.7591503,4333.6,4333.5,6.6212]
[1760041028861,2.3076568,4333.4,4333.3,0.0348]
[1760041029377,2.7592568,4333.4,4333.3,0.0348]
[1760041030790,0.4516,4333.4,4333.3,0.0348]
[1760041031086,0.002,4333.7,4333.3,6.5408]
[1760041031656,2.30950978,4333.7,4333.3,6.5408]
[1760041031855,0.002,4333.7,4333.4,0.02307656]
[1760041032998,2.30951171,4333.7,4333.4,0.02307656]
[1760041033858,0.002,4333.7,4333.4,0.02307656]
[1760041034071,0.002,4333.7,4333.5,0.1321]
[1760041034271,0.002,4333.7,4333.5,0.1152]
[1760041035393,0.002,4333.7,4333.6,0.0230755]
[1760041036780,0.002,4333.7,4333.5,0.1152]
[1760041036991,0.002,4333.7,4333.6,0.0230755]
[1760041038781,0.002,4333.7,4333.6,0.1551755]
[1760041038982,0.002,4333.7,4333.6,1.37373977]
[1760041039314,0.002,4333.7,4333.6,5.57821457]
[1760041040792,0.002,4333.7,4333.6,3.27066427]
[1760041041310,0.002,4333.7,4333.6,5.57821457]
[1760041042304,0.002,4333.7,4333.6,3.27066427]
[1760041042511,0.002,4333.7,4333.6,9.77666427]
[1760041043632,0.002,4333.7,4333.6,9.89158976]
[1760041043928,0.002,4333.7,4333.6,9.75948976]
[1760041044093,0.002,4333.7,4333.6,8.426]
[1760041044497,2.76109705,4333.7,4333.6,6.506]
[1760041044726,2.3076568,4333.4,4333.3,2.4348]
[1760041044893,2.7592568,4333.4,4333.3,0.0358]
[1760041045098,3.27765914,4333.4,4333.3,0.0358]
[1760041047725,3.7736172,4333.4,4333.3,0.0358]
[1760041048284,3.27765914,4333.4,4333.3,0.0358]
[1760041049521,3.91125914,4333.4,4333.3,0.0358]
[1760041049841,2.9415231,4332.9,4332.8,0.001]
[1760041050138,5.86546039,4332.9,4332.8,0.001]
[1760041050292,6.83135543,4332.9,4332.8,0.001]
[1760041052290,6.33576039,4332.9,4332.8,0.001]
[1760041052520,3.93676039,4332.9,4332.8,0.001]
[1760041052720,12.84276039,4332.9,4332.8,0.001]
[1760041053951,12.84376039,4332.9,4332.8,0.001]
[1760041054939,12.93618172,4332.9,4332.8,0.001]
[1760041059641,12.93006558,4332.9,4332.8,0.001]
[1760041064362,12.93006558,4332.9,4332.3,1e-08]
[1760041064363,4.86178945,4332.4,4332.3,1e-08]
[1760041064587,16.27237183,4332.4,4332.3,1e-08]
[1760041064791,16.74267183,4332.4,4332.3,1e-08]
[1760041064989,16.83511238,4332.4,4332.3,1e-08]
[1760041065576,10.32711238,4332.4,4332.3,1e-08]
[1760041065761,19.23511238,4332.4,4332.3,1e-08]
[1760041068384,10.82028398,4332.4,4332.3,1e-08]
[1760041068615,19.23511238,4332.4,4332.3,1e-08]
[1760041068787,19.72827451,4332.4,4332.3,1e-08]
[1760041069399,19.72834793,4332.4,4332.3,1e-08]
[1760041070815,2.94242896,4331.2,4331.1,1e-08]
[1760041070997,16.02406343,4331.2,4331.1,1e-08]
[1760041071199,16.46026343,4331.2,4331.1,1e-08]
[1760041071379,16.55272492,4331.2,4331.1,1e-08]
[1760041071584,18.47272492,4331.2,4331.1,1e-08]
[1760041071787,18.96600212,4331.2,4331.1,1e-08]
[1760041072396,6.17861055,4331.2,4331.1,1e-08]
[1760041072585,15.08761055,4331.2,4331.1,1e-08]
[1760041074210,6.17861055,4331.2,4331.1,1e-08]
[1760041074413,15.08861055,4331.2,4331.1,1e-08]
[1760041075025,15.08961055,4331.2,4331.1,1e-08]
[1760041075212,12.68861055,4331.2,4331.1,1e-08]
[1760041075516,15.08961055,4331.2,4331.1,1e-08]
[1760041075912,6.17861055,4331.2,4331.1,1e-08]
[1760041076230,15.08961055,4331.2,4331.1,1e-08]
[1760041076391,8.57961055,4331.2,4331.1,1e-08]
[1760041076593,13.07714906,4331.2,4331.1,1e-08]
[1760041076942,13.07780087,4331.2,4331.1,1e-08]
[1760041078911,4.16680087,4331.2,4331.1,1e-08]
[1760041079112,13.07780087,4331.2,4331.1,0.00100001]
[1760041079290,13.07980087,4331.2,4331.1,0.00100001]
[1760041082130,3.87455797,4331.2,4331.1,0.00100001]
[1760041082334,3.87481835,4331.2,4331.1,0.00100001]
[1760041082710,10.38481835,4331.2,4331.1,0.00100001]
[1760041082910,3.24121835,4331.2,4331.1,0.00100001]
[1760041083137,9.25702896,4331.2,4331.1,0.00100001]
[1760041083805,2.71742896,4331.2,4331.1,0.00100001]
[1760041084007,9.22742896,4331.2,4331.1,0.00100001]
[1760041084943,2.30909552,4330.7,4330.6,0.001]
[1760041085147,8.82009552,4330.7,4330.6,0.001]
[1760041085313,9.28989552,4330.7,4330.6,0.001]
[1760041087219,6.9808,4330.7,4330.6,0.001]
[1760041087745,0.4698,4330.7,4330.6,0.001]
[1760041087944,4.8818,4330.7,4330.6,0.001]
[1760041088429,0.4698,4330.7,4330.6,0.001]
[1760041088760,3.16,4330.7,4330.6,0.001]
[1760041089212,0.4698,4331.0,4330.6,0.001]
[1760041089626,3.439,4330.9,4330.6,0.001]
[1760041089826,0.002,4331.2,4330.7,4.22908662]
[1760041090129,0.002,4331.2,4331.0,2.30890363]
[1760041090449,0.002,4331.2,4331.1,2.33197109]
[1760041090769,0.002,4331.2,4331.1,2.46507109]
[1760041093252,0.002,4331.2,4331.1,2.44198227]
[1760041093456,0.002,4331.2,4331.1,3.478297]
[1760041093661,0.002,4331.2,4331.1,1.92]
[1760041096165,0.4718,4331.2,4331.1,1.92]
[1760041099096,0.002,4331.2,4331.1,1.92]
[1760041099569,0.002,4331.2,4331.1,4.22888227]
[1760041099870,0.002,4331.2,4331.1,2.0352]
[1760041100057,0.002,4331.2,4331.1,3.36081231]
[1760041101242,0.002,4331.2,4331.1,5.66969458]
[1760041101437,0.002,4331.2,4331.1,5.80279458]
[1760041110861,0.002,4331.2,4331.1,12.31179458]
[1760041114478,0.002,4331.2,4331.1,12.31279458]
[1760041114678,0.002,4331.2,4331.1,21.91579458]
[1760041116449,0.002,4331.2,4331.1,19.47381231]
[1760041116702,0.002,4331.2,4331.1,18.1482]
[1760041117470,0.002,4331.2,4331.1,20.59018227]
[1760041120066,0.002,4331.7,4331.6,2.30861575]
[1760041120260,0.002,4331.7,4331.6,13.79034599]
[1760041120500,0.002,4331.7,4331.6,13.92344599]
[1760041120705,0.002,4331.7,4331.6,14.01583893]
[1760041122670,0.002,4331.7,4331.6,14.64943893]
[1760041130102,0.002,4331.7,4331.6,14.76463893]
[1760041135046,0.002,4331.7,4331.6,14.13103893]
[1760041143461,0.002,4332.1,4332.0,2.30840258]
[1760041143644,0.002,4332.1,4332.0,11.38909]
[1760041143845,0.002,4332.1,4332.0,11.50429]
[1760041144147,0.002,4332.1,4332.0,11.72977269]
[1760041145644,0.002,4332.1,4332.0,11.63739]
[1760041148057,0.002,4332.1,4332.0,11.50429]
[1760041148628,0.002,4332.1,4332.0,8.5422]
[1760041148829,0.477,4332.1,4332.0,6.6222]
[1760041149231,0.477,4332.1,4332.0,8.5422]
[1760041149558,0.477,4332.1,4332.0,8.427]
[1760041149559,0.002,4332.1,4332.0,8.427]
[1760041149763,0.477,4332.1,4332.0,8.427]
[1760041151463,0.002,4332.1,4332.0,10.86850258]
[1760041151634,0.002,4332.1,4332.0,12.20012182]
[1760041151830,0.002,4332.1,4332.0,12.31532182]
[1760041155566,0.002,4332.1,4332.0,12.18222182]
[1760041155745,0.002,4332.1,4332.0,10.85060258]
[1760041156267,0.002,4332.1,4332.0,8.5422]
[1760041156470,0.002,4332.1,4332.0,10.85060258]
[1760041156672,0.002,4332.1,4332.0,10.98370258]
[1760041157351,0.002,4332.1,4332.0,10.85060258]
[1760041157556,0.002,4332.1,4332.0,10.98370258]
[1760041157758,0.002,4332.1,4332.0,11.41756297]
[1760041172944,0.002,4332.1,4332.0,11.28346297]
[1760041173147,0.002,4332.1,4332.0,10.84960258]
[1760041173738,0.002,4332.1,4332.0,10.98270258]
[1760041175008,0.002,4332.1,4332.0,10.84960258]
[1760041177615,0.002,4332.1,4332.0,10.98270258]
[1760041186681,0.002,4332.1,4332.0,10.84960258]
[1760041187166,0.002,4332.1,4332.0,8.5412]
[1760041187372,0.4697,4332.1,4332.0,6.506]
[1760041187536,0.002,4332.1,4332.0,6.506]
[1760041187736,0.002,4332.1,4332.0,8.81440258]
[1760041187976,0.002,4332.1,4332.0,6.506]
[1760041190362,0.002,4332.1,4332.0,8.81440258]
[1760041191789,0.002,4332.1,4332.0,9.06270258]
[1760041191989,0.002,4332.1,4332.0,10.44222017]
[1760041192158,0.002,4332.1,4332.0,12.36222017]
[1760041192353,0.002,4332.1,4332.0,12.24702017]
[1760041192560,0.002,4332.1,4332.0,12.36222017]
[1760041194359,0.002,4332.1,4332.0,12.22912017]
[1760041196199,0.002,4332.1,4332.0,12.36222017]
[1760041200470,0.002,4332.1,4332.0,12.22912017]
[1760041200662,0.002,4332.1,4332.0,10.84960258]
[1760041201059,0.002,4332.1,4332.0,10.98270258]
[1760041202699,0.002,4332.1,4332.0,10.84960258]
[1760041203026,0.002,4332.1,4332.0,10.98270258]
[1760041212529,0.002,4332.1,4332.0,10.84960258]
[1760041212833,0.002,4332.1,4332.0,0.1152]
[1760041213003,0.4494,4332.1,4331.9,6.506]
[1760041213210,0.7253596,4332.1,4332.0,2.214]
[1760041213535,0.7253596,4332.1,4332.0,1.92]
[1760041213719,0.4494,4332.1,4332.0,1.92]
[1760041213895,0.002,4332.1,4332.0,1.92]
[1760041214923,0.002,4332.1,4332.0,4.22840258]
[1760041215426,0.002,4332.1,4332.0,1.92]
[1760041215633,0.002,4332.1,4332.0,4.22840258]
[1760041216308,0.002,4332.1,4332.0,1.92]
[1760041216834,0.4494,4332.1,4332.0,1.92]
[1760041218050,0.002,4332.1,4332.0,1.92]
[1760041218231,0.002,4332.1,4332.0,4.22840258]
[1760041218534,0.002,4332.1,4332.0,1.92]
[1760041220628,0.002,4332.1,4332.0,4.22840258]
[1760041221712,0.002,4332.1,4332.0,1.92]
[1760041223755,0.4494,4332.1,4332.0,1.92]
[1760041224955,0.28948434,4332.1,4331.9,6.506]
[1760041225119,0.4474,4332.0,4331.7,0.024]
[1760041225521,0.1152,4331.9,4331.7,0.024]
[1760041225823,0.002,4332.1,4331.8,6.506]
[1760041226152,0.4494,4332.1,4331.8,6.506]
[1760041226316,0.4474,4332.0,4331.8,6.506]
[1760041227222,0.002,4332.1,4331.8,6.506]
[1760041227422,0.002,4332.1,4331.8,8.81449215]
[1760041227654,0.002,4332.1,4331.8,6.506]
[1760041228342,0.4706,4332.1,4331.8,6.506]
[1760041228845,0.002,4332.1,4331.8,6.506]
[1760041229154,0.4686,4332.0,4331.8,6.506]
[1760041232258,0.002,4332.1,4331.8,6.506]
[1760041232579,0.4706,4332.1,4331.8,6.506]
[1760041233455,0.002,4332.1,4331.8,6.506]
[1760041233652,0.002,4332.1,4331.9,2.33149525]
[1760041233969,0.002,4332.1,4332.0,2.30840258]
[1760041236903,0.002,4332.1,4332.0,5.97002136]
[1760041237103,0.002,4332.1,4332.0,7.89002136]
[1760041239200,0.002,4332.1,4332.0,14.39602136]
[1760041240999,0.002,4333.0,4332.5,2.30813618]
[1760041241200,0.002,4333.0,4332.8,4.22797636]
[1760041241514,0.002,4333.0,4332.8,15.38574681]
[1760041241688,0.002,4333.0,4332.8,15.51884681]
[1760041242486,0.002,4333.0,4332.8,15.38574681]
[1760041244692,0.002,4333.0,4332.8,13.07777045]
[1760041244892,0.002,4333.0,4332.8,10.826]
[1760041245482,0.002,4333.0,4332.8,8.906]
[1760041246518,0.002,4333.0,4332.8,11.21397636]
[1760041249632,0.007,4332.9,4332.8,11.21397636]
[1760041250311,0.007,4332.9,4332.8,8.906]
[1760041254760,0.007,4332.9,4332.8,11.21397636]
[1760041255413,0.007,4332.9,4332.8,8.906]
[1760041258647,0.007,4332.9,4332.8,11.21397636]
[1760041260442,0.007,4332.9,4332.8,11.34707636]
[1760041260722,0.007,4332.9,4332.8,15.51884681]
[1760041264869,0.007,4332.9,4332.8,13.07677045]
[1760041265167,0.007,4332.9,4332.8,10.825]
[1760041265743,0.007,4332.9,4332.8,8.905]
[1760041265948,2.7709231,4332.9,4332.8,6.505]
[1760041266569,0.463,4332.9,4332.8,6.505]
[1760041266752,0.007,4332.9,4332.8,6.505]
[1760041267568,0.463,4332.9,4332.8,6.505]
[1760041267872,2.7709231,4332.9,4332.8,6.505]
[1760041268673,0.007,4332.9,4332.8,6.505]
[1760041268975,0.007,4332.9,4332.8,8.81297636]
[1760041269939,0.007,4332.9,4332.8,6.505]
[1760041270972,0.007,4332.9,4332.8,8.81297636]
[1760041272035,0.007,4332.9,4332.8,6.505]
[1760041273680,0.007,4332.9,4332.8,11.16402063]
[1760041273867,0.007,4332.9,4332.8,11.27922063]
[1760041276466,0.007,4332.9,4332.8,11.51012063]
[1760041276665,0.007,4332.9,4332.8,11.27922063]
[1760041279288,0.002,4333.4,4332.9,4.2279231]
[1760041279584,0.002,4333.4,4333.3,2.30771005]
[1760041279785,0.002,4333.4,4333.3,10.84691005]
[1760041280178,0.002,4333.4,4333.3,10.98001005]
[1760041285772,0.002,4333.4,4333.3,4.34291005]
[1760041285975,0.002,4333.4,4333.3,10.84591005]
[1760041286174,0.002,4333.4,4333.3,13.0976805]
[1760041286577,0.002,4333.4,4333.3,13.2307805]
[1760041289876,0.002,4333.4,4333.3,10.92307045]
[1760041290398,0.002,4333.4,4333.3,13.2307805]
[1760041291499,0.002,4333.4,4333.3,13.0976805]
[1760041292774,0.002,4333.4,4333.3,2.0352]
[1760041292979,0.002,4333.4,4333.3,6.503]
[1760041293513,0.4352,4333.4,4333.3,6.503]
[1760041297034,0.002,4333.4,4333.3,6.503]
[1760041297212,0.002,4333.4,4333.3,10.73071005]
[1760041297410,0.002,4333.4,4333.3,12.40766266]
[1760041307228,0.002,4333.4,4333.3,12.52286266]
[1760041312406,0.002,4333.4,4333.3,12.61522018]
[1760041315113,0.002,4333.4,4333.3,12.38976266]
[1760041315626,0.002,4333.4,4333.3,12.52286266]
[1760041316013,0.002,4333.4,4333.3,6.503]
[1760041316422,0.4328,4333.4,4333.3,6.503]
[1760041316622,0.002,4333.4,4333.3,6.503]
[1760041317848,2.30781657,4333.1,4333.0,0.001]
[1760041318047,0.4691,4333.1,4333.0,6.503]
[1760041318615,2.77691657,4333.1,4333.0,0.001]
[1760041320547,0.4691,4333.1,4333.0,0.001]
[1760041321543,0.002,4333.4,4333.0,0.001]
[1760041321743,0.002,4333.4,4333.1,2.30777858]
[1760041321940,0.002,4333.4,4333.3,2.30771005]
[1760041322252,0.002,4333.4,4333.2,8.81071649]
[1760041322419,0.002,4333.4,4333.2,8.81075478]
[1760041322620,0.002,4333.4,4333.3,2.30771005]
[1760041325899,0.002,4333.4,4333.2,8.81075133]
[1760041326063,0.002,4333.4,4333.2,8.92595133]
[1760041327008,0.002,4333.4,4333.2,8.92594874]
[1760041327772,0.002,4333.4,4333.2,6.6182]
[1760041328093,0.002,4333.4,4333.2,8.92595768]
[1760041328292,0.002,4333.4,4333.2,6.6182]
[1760041328602,0.4711,4333.4,4333.2,6.6182]
[1760041328768,0.4711,4333.4,4333.2,8.92595572]
[1760041329180,0.002,4333.4,4333.2,8.92595572]
[1760041329511,0.002,4333.4,4333.3,2.33078715]
[1760041329674,0.002,4333.4,4333.3,2.46388715]
[1760041330278,0.002,4333.4,4333.3,4.38388715]
[1760041330495,0.002,4333.4,4333.3,4.47601005]
[1760041330700,0.002,4333.4,4333.3,4.49908715]
[1760041330868,0.002,4333.4,4333.3,6.7508576]
[1760041331069,0.002,4333.4,4333.3,6.7277805]
[1760041337367,0.002,4333.7,4333.3,6.7277805]
[1760041337567,0.002,4333.7,4333.5,1.92]
[1760041337770,0.002,4333.7,4333.6,8.5602755]
[1760041338017,0.002,4333.7,4333.6,12.1700359]
[1760041338201,0.002,4333.7,4333.6,12.3031359]
[1760041343988,0.002,4333.7,4333.6,12.1700359]
[1760041344189,0.002,4333.7,4333.6,12.3031359]
[1760041351237,1e-08,4333.8,4333.7,4.22749705]
[1760041351452,1e-08,4333.8,4333.7,5.53331592]
[1760041351962,1e-08,4333.8,4333.7,5.62565703]
[1760041357273,1e-08,4333.8,4333.7,24.12165703]
[1760041358573,1e-08,4333.8,4333.7,24.02931592]
[1760041358780,1e-08,4333.8,4333.7,22.85659705]
[1760041361083,1e-08,4333.8,4333.7,13.12749705]
[1760041366555,1e-08,4333.8,4333.7,13.26059705]
[1760041374174,1e-08,4333.8,4333.7,13.12749705]
[1760041375602,1e-08,4333.8,4333.7,13.26059705]
[1760041376569,1e-08,4333.8,4333.7,13.12749705]
[1760041376786,1e-08,4333.8,4333.7,13.26059705]
[1760041379307,1e-08,4333.8,4333.7,13.12749705]
[1760041398224,1e-08,4333.8,4333.7,13.26059705]
[1760041398866,1e-08,4333.8,4333.7,13.12749705]
[1760041400772,0.44090001,4333.8,4333.7,13.12749705]
[1760041401137,1e-08,4333.8,4333.7,13.12749705]
[1760041402291,1e-08,4333.8,4333.6,0.1162]
[1760041402292,0.66680001,4333.8,4333.6,0.001]
[1760041402464,0.78200001,4333.8,4333.6,0.001]
[1760041403174,2.30749705,4333.7,4333.6,0.001]
[1760041403467,2.43612606,4333.7,4333.6,0.001]
[1760041403636,2.86992606,4333.7,4333.6,0.001]
[1760041403838,3.50352606,4333.7,4333.6,0.001]
[1760041404072,3.99995701,4333.7,4333.6,0.001]
[1760041404279,3.50352606,4333.7,4333.6,0.001]
[1760041407339,1.19602901,4333.7,4333.6,0.001]
[1760041407687,3.50352606,4333.7,4333.6,0.001]
[1760041408552,0.12862901,4333.7,4333.6,0.001]
[1760041408876,0.1152,4333.7,4333.6,0.001]
[1760041409044,1e-08,4333.8,4333.6,0.001]
[1760041409754,0.44840001,4333.8,4333.6,0.001]
[1760041411090,0.4484,4333.7,4333.6,0.001]
[1760041417095,2.75589705,4333.7,4333.6,0.001]
[1760041417387,3.28482713,4333.7,4333.6,0.001]
[1760041420496,3.91842713,4333.7,4333.6,0.001]
[1760041421602,6.33402693,4333.7,4333.6,0.001]
[1760041423692,6.42643331,4333.7,4333.6,0.001]
[1760041431381,15.32843331,4333.7,4333.6,0.001]
[1760041435304,15.32943331,4333.7,4333.6,0.001]
[1760041440301,6.42643331,4333.7,4333.6,0.001]
[1760041440499,3.34390323,4333.7,4333.6,0.001]
[1760041440699,2.75589705,4333.7,4333.6,0.001]
[1760041440911,9.89249705,4333.7,4333.6,0.001]
[1760041441112,3.38949705,4333.7,4333.6,0.001]
[1760041441304,9.89249705,4333.7,4333.6,0.001]
[1760041442097,3.38949705,4333.7,4333.6,0.001]
[1760041442297,9.89249705,4333.7,4333.6,0.001]
[1760041442693,11.38432711,4333.7,4333.6,0.001]
[1760041442899,11.87998247,4333.7,4333.6,0.001]
[1760041446030,11.88035242,4333.7,4333.6,0.001]
[1760041446800,11.97275582,4333.7,4333.6,0.001]
[1760041450655,14.37175582,4333.7,4333.6,0.001]
[1760041451834,5.46975582,4333.7,4333.6,0.001]
[1760041452136,12.87992576,4333.7,4333.6,0.001]
[1760041453716,3.97792576,4333.7,4333.6,0.001]
[1760041453918,12.87992576,4333.7,4333.6,0.001]
[1760041455007,3.97202576,4333.7,4333.6,0.001]
[1760041455209,10.47402576,4333.7,4333.6,0.001]
[1760041455404,12.01476925,4333.7,4333.6,0.001]
[1760041456703,14.76438334,4333.7,4333.6,0.001]
[1760041456907,13.93476925,4333.7,4333.6,0.001]
[1760041458409,14.76260463,4333.7,4333.6,0.001]
[1760041459953,7.43276925,4333.7,4333.6,0.001]
[1760041460149,16.33476925,4333.7,4333.6,0.001]
[1760041460652,17.16260463,4333.7,4333.6,0.001]
[1760041462226,14.76260463,4333.7,4333.6,0.001]
[1760041462544,17.16260463,4333.7,4333.6,0.001]
[1760041462745,8.26060463,4333.7,4333.6,0.001]
[1760041463048,17.16260463,4333.7,4333.6,0.001]
[1760041468829,8.26060463,4333.7,4333.6,0.001]
[1760041469352,7.43276925,4333.7,4333.6,0.001]
[1760041469561,16.33476925,4333.7,4333.6,0.001]
[1760041471525,7.43276925,4333.7,4333.6,0.001]
[1760041471723,16.33476925,4333.7,4333.6,0.001]
[1760041471956,8.05373957,4333.7,4333.6,0.001]
[1760041472161,16.95573957,4333.7,4333.6,0.001]
[1760041472548,0.93852531,4333.7,4333.6,0.001]
[1760041472729,1e-08,4333.8,4333.6,0.001]
[1760041473054,0.4653,4333.7,4333.6,0.001]
[1760041474439,2.77279705,4333.7,4333.6,0.001]
[1760041474767,3.40639705,4333.7,4333.6,0.001]
[1760041474966,4.44362921,4333.7,4333.6,0.001]
[1760041475159,3.40639705,4333.7,4333.6,0.001]
[1760041477033,7.7429068,4333.7,4333.6,0.001]
[1760041477251,9.6629068,4333.7,4333.6,0.001]
[1760041477436,10.28356561,4333.7,4333.6,0.001]
[1760041480139,8.84356561,4333.7,4333.6,0.001]
[1760041480364,10.50729817,4333.7,4333.6,0.001]
[1760041481274,9.88663936,4333.7,4333.6,0.001]
[1760041482577,10.50727727,4333.7,4333.6,0.001]
[1760041483263,10.50735007,4333.7,4333.6,0.001]
[1760041484371,10.5074536,4333.7,4333.6,0.001]
[1760041485378,9.88671805,4333.7,4333.6,0.001]
[1760041485677,10.50758426,4333.7,4333.6,0.001]
[1760041486277,9.88671805,4333.7,4333.6,0.001]
[1760041491362,10.50769643,4333.7,4333.6,0.001]
[1760041491657,14.60969643,4333.7,4333.6,0.001]
[1760041491862,17.00969643,4333.7,4333.6,0.001]
[1760041497000,16.38871805,4333.7,4333.6,0.001]
[1760041501503,20.26593904,4333.7,4333.6,0.001]
[1760041501798,7.48671805,4333.7,4333.6,0.001]
[1760041502104,16.38871805,4333.7,4333.6,0.001]
[1760041502700,17.21655343,4333.7,4333.6,0.001]
[1760041503100,16.38871805,4333.7,4333.6,0.001]
[1760041503295,17.21655343,4333.7,4333.6,0.001]
[1760041505221,16.38871805,4333.7,4333.6,0.001]
[1760041508649,2.9412568,4333.4,4333.3,0.001]
[1760041508812,14.82735339,4333.4,4333.3,0.001]
[1760041509011,15.26575339,4333.4,4333.3,0.001]
[1760041509409,16.09599245,4333.4,4333.3,0.001]
[1760041509610,2.94157636,4332.8,4331.7,0.025]
[1760041509850,18.13738579,4332.8,4331.7,0.025]
[1760041510004,20.23951835,4332.8,4331.7,0.025]
[1760041510209,21.06879382,4332.8,4331.7,0.025]
[1760041510643,20.23951835,4332.8,4331.7,0.025]
[1760041511354,21.0682922,4332.8,4331.7,0.025]
[1760041511551,20.23951835,4332.8,4331.7,0.025]
[1760041511763,12.16626507,4332.8,4331.7,0.025]
[1760041512049,3.8765648,4332.8,4331.7,0.025]
[1760041512256,10.3785648,4332.8,4331.9,2.3084538]
[1760041513038,10.3785648,4332.8,4331.7,0.04808562]
[1760041513039,0.93498844,4332.8,4331.8,2.30850661]
[1760041513252,0.4384,4332.8,4332.0,2.30839187]
[1760041513428,4.7954,4332.8,4332.0,2.30839187]
[1760041513634,7.5999648,4332.8,4332.0,2.30839187]
[1760041514635,0.93498844,4332.8,4332.1,2.30934545]
[1760041514927,7.43698844,4332.8,4332.1,0.001]
[1760041515118,9.7449648,4332.8,4332.1,0.001]
[1760041515320,9.24837636,4332.8,4332.1,0.001]
[1760041517651,9.74566746,4332.8,4332.1,0.001]
[1760041518446,3.24366746,4332.8,4332.1,0.001]
[1760041518766,6.9404,4332.8,4332.1,0.001]
[1760041518971,9.74566746,4332.8,4332.1,0.001]
[1760041519158,7.4376911,4332.8,4332.1,0.001]
[1760041519355,9.74566746,4332.8,4332.1,0.001]
[1760041520537,9.74573436,4332.8,4332.1,0.001]
[1760041521576,9.74573436,4332.8,4332.2,0.001]
[1760041523556,0.6336,4333.3,4332.4,2.30817298]
[1760041523776,2.74621875,4333.1,4332.4,2.30817298]
[1760041523979,5.355,4333.0,4332.4,2.30817298]
[1760041524693,0.4384,4332.9,4332.3,2.30823715]
[1760041525050,7.66287705,4333.0,4332.3,2.30823715]
[1760041525267,0.4384,4332.9,4332.3,2.30823715]
[1760041525890,0.4384,4332.8,4332.3,2.30823715]
[1760041527176,6.502,4332.9,4332.3,2.30823715]
[1760041527678,6.502,4332.9,4332.4,2.30818687]
[1760041528584,0.4603,4333.2,4332.7,0.23211869]
[1760041528877,0.1152,4333.3,4332.9,2.3079231]
[1760041529077,0.1152,4333.6,4333.2,2.30775271]
[1760041529278,0.1152,4333.6,4333.3,2.33078188]
[1760041529669,0.1152,4333.6,4333.4,2.30760576]
[1760041529869,0.1152,4333.6,4333.2,2.30775232]
[1760041530179,0.1152,4333.6,4333.3,0.47486732]
[1760041532181,0.4603,4333.5,4333.3,0.47486732]
[1760041532487,0.4603,4333.4,4333.0,2.30786295]
[1760041533582,0.4603,4333.4,4332.9,0.1152]
[1760041533802,0.1152,4333.6,4333.1,2.30780207]
[1760041534006,0.1152,4333.6,4332.9,0.1152]
[1760041534205,0.1152,4333.6,4333.2,2.3077168]
[1760041534366,0.1152,4333.6,4333.2,2.78079546]
[1760041535181,0.1152,4333.6,4333.2,0.47307866]
[1760041535909,0.1152,4333.6,4333.2,2.78083]
[1760041536293,0.1152,4333.6,4333.2,2.78082972]
[1760041536609,0.1152,4333.6,4333.2,0.47307866]
[1760041537110,0.5755,4333.6,4333.2,0.47307866]
[1760041538287,0.5775,4333.6,4333.2,0.47307866]